[Event "3rd Memorial Warakomska 2019"]
[Site "Suwalki"]
[Date "2019.08.09"]
[Round "6.17"]
[White "Suliborski, Jakub"]
[Black "Cukrowski, Filip"]
[Result "1/2-1/2"]
[ECO "E15"]
[WhiteElo "2131"]
[BlackElo "2421"]
[Annotator "NA"]
[PlyCount "151"]
[EventDate "2019.08.05"]
[EventType "swiss"]
[EventCountry "POL"]
[SourceTitle "playchess.com"]
[Source "ChessBase"]
[SourceQuality "1"]
[TimeControl "40/5400+30:1800+30"]

1. d4 {[%emt 0:00:00]} Nf6 {[%emt 0:03:07]} 2. Nf3 {[%emt 0:00:00]} e6 {[%emt 0:00:14]} 3. c4 {[%emt 0:00:00]} b6 {[%emt 0:00:05]} 4. g3 {[%emt 0:00:03]} Bb7 {[%emt 0:00:06]} 5. Bg2 {[%emt 0:00:10]} c5 {[%emt 0:00:05]} 6. O-O {[%emt 0:00:38]} cxd4 {[%emt 0:00:09]} 7. Nxd4 {[%emt 0:00:08]} Bxg2 {[%emt 0:00:06]} 8. Kxg2 {[%emt 0:00:06]} a6 {[%emt 0:11:21]} 9. Nc3 {[%emt 0:06:32]} Qc7 {[%emt 0:00:49]} 10. Qd3 {[%emt 0:04:18]} Nc6 {[%emt 0:00:36]} 11. Nxc6 {[%emt 0:06:06]} Qxc6+ {[%emt 0:00:08]} 12. Qf3 {[%emt 0:00:04]} Rc8 {[%emt 0:01:22]} 13. Qxc6 {[%emt 0:00:11]} Rxc6 {[%emt 0:00:06]} 14. Be3 {[%emt 0:00:04]} Ng4 {[%emt 0:07:36]} 15. Nd1 {[%emt 0:02:14]} Bd6 {[%emt 0:04:53]} 16. Rc1 {[%emt 0:05:48]} Be5 {[%emt 0:20:51]} 17. b3 {[%emt 0:02:07]} Ke7 {[%emt 0:00:06]} 18. h3 {[%emt 0:00:47]} Nxe3+ {[%emt 0:02:13]} 19. Nxe3 {[%emt 0:00:07]} Rhc8 {[%emt 0:04:02]} 20. Rcd1 {[%emt 0:04:53]} b5 {[%emt 0:00:47]} 21. Rd3 {[%emt 0:00:53]} Bb8 {[%emt 0:05:28]} 22. Rfd1 {[%emt 0:05:04]} R8c7 {[%emt 0:00:17]} 23. cxb5 {[%emt 0:03:47]} axb5 {[%emt 0:00:07]} 24. a4 {[%emt 0:00:02]} bxa4 {[%emt 0:00:34]} 25. bxa4 {[%emt 0:00:04]} Ra6 {[%emt 0:00:24]} 26. Rb1 {[%emt 0:01:46]} Ba7 {[%emt 0:00:09]} 27. Rb4 {[%emt 0:00:13]} d5 {[%emt 0:05:47]} 28. Nf1 {[%emt 0:07:14]} Bc5 {[%emt 0:01:47]} 29. Rh4 {[%emt 0:00:38]} h6 {[%emt 0:00:11]} 30. Nd2 {[%emt 0:00:36]} Rca7 {[%emt 0:07:23]} 31. Nb3 {[%emt 0:05:38]} Bb6 {[%emt 0:00:09]} 32. Rb4 {[%emt 0:00:48]} Bc7 {[%emt 0:02:20]} 33. a5 {[%emt 0:04:05]} Bxa5 {[%emt 0:00:12]} 34. Nxa5 {[%emt 0:00:06]} Rxa5 {[%emt 0:00:05]} 35. Rdb3 {[%emt 0:01:36]} Rd7 {[%emt 0:00:42]} 36. Rb7 {[%emt 0:00:22]} Ra7 {[%emt 0:00:18]} 37. Rxa7 {[%emt 0:01:09]} Rxa7 {[%emt 0:02:13]} 38. e3 {[%emt 0:00:08]} g5 {[%emt 0:03:10]} 39. Rb8 {[%emt 0:01:32]} e5 {[%emt 0:01:04]} 40. Rb6 {[%emt 0:00:00]} f6 {[%emt 0:00:00]} 41. Kf3 {[%emt 0:01:07]} h5 {[%emt 0:00:47]} 42. Rb8 {[%emt 0:01:08]} Ra4 {[%emt 0:13:22]} 43. Rb7+ {[%emt 0:13:42]} Ke6 {[%emt 0:00:06]} 44. Rb6+ {[%emt 0:00:05]} Kf5 {[%emt 0:00:17]} 45. Rd6 {[%emt 0:00:07]} g4+ {[%emt 0:00:28]} 46. hxg4+ {[%emt 0:00:04]} hxg4+ {[%emt 0:00:04]} 47. Ke2 {[%emt 0:00:46]} Ra2+ {[%emt 0:00:52]} 48. Ke1 {[%emt 0:00:40]} Ra5 {[%emt 0:12:55]} 49. Ke2 {[%emt 0:02:19]} Rb5 {[%emt 0:01:05]} 50. Ke1 {[%emt 0:01:52]} Ke4 {[%emt 0:07:20]} 51. Rxf6 {[%emt 0:00:16]} d4 {[%emt 0:00:07]} 52. exd4 {[%emt 0:00:37]} Kd3 {[%emt 0:00:04]} 53. Kf1 {[%emt 0:01:27]} exd4 {[%emt 0:00:03]} 54. f3 {[%emt 0:09:49]} Rb1+ {[%emt 0:12:05]} 55. Kf2 {[%emt 0:00:10]} Rb2+ {[%emt 0:00:02]} 56. Kf1 {[%emt 0:00:07]} Rb1+ {[%emt 0:00:02]} 57. Kf2 {[%emt 0:00:05]} Rb2+ {[%emt 0:00:02]} 58. Kf1 {[%emt 0:00:56]} gxf3 {[%emt 0:00:05]} 59. Rxf3+ {[%emt 0:00:17]} Kc2 {[%emt 0:00:56]} 60. Ke1 {[%emt 0:19:43]} Rb8 {[%emt 0:04:32]} 61. Rf2+ {[%emt 0:05:01]} Kc1 {[%emt 0:00:05]} 62. Rf7 {[%emt 0:00:07]} Re8+ {[%emt 0:00:13]} 63. Kf2 {[%emt 0:00:07]} d3 {[%emt 0:00:18]} 64. Rc7+ {[%emt 0:00:20]} Kd1 {[%emt 0:00:05]} 65. g4 {[%emt 0:00:17]} d2 {[%emt 0:01:13]} 66. Rd7 {[%emt 0:01:24]} Re4 {[%emt 0:01:47]} 67. Kf3 {[%emt 0:02:45]} Rc4 {[%emt 0:00:19]} 68. Ke3 {[%emt 0:00:14]} Rc3+ {[%emt 0:00:40]} 69. Ke4 {[%emt 0:01:23]} Ke2 {[%emt 0:00:10]} 70. Rxd2+ {[%emt 0:00:45]} Kxd2 {[%emt 0:00:04]} 71. g5 {[%emt 0:00:31]} Rc4+ {[%emt 0:02:23]} 72. Kf5 {[%emt 0:00:42]} Ke3 {[%emt 0:00:05]} 73. g6 {[%emt 0:00:12]} Rc5+ {[%emt 0:01:05]} 74. Kf6 {[%emt 0:00:16]} Rc6+ {[%emt 0:00:03]} 75. Kf7 {[%emt 0:00:08]} Rxg6 {[%emt 0:00:03]} 76. Kxg6 {[%emt 0:00:04]} 1/2-1/2

[Event "3rd Memorial Warakomska 2019"]
[Site "Suwalki"]
[Date "2019.08.09"]
[Round "6.18"]
[White "Grib, Roman"]
[Black "Gurbanov, Andrei"]
[Result "1-0"]
[ECO "C64"]
[WhiteElo "2421"]
[BlackElo "2305"]
[Annotator "NA"]
[PlyCount "89"]
[EventDate "2019.08.05"]
[EventType "swiss"]
[EventCountry "POL"]
[SourceTitle "playchess.com"]
[Source "ChessBase"]
[SourceQuality "1"]
[TimeControl "40/5400+30:1800+30"]

1. e4 {[%emt 0:00:00]} e5 {[%emt 0:00:00]} 2. Nf3 {[%emt 0:00:09]} Nc6 {[%emt 0:00:00]} 3. Bb5 {[%emt 0:00:11]} Bc5 {[%emt 0:00:00]} 4. c3 {[%emt 0:01:09]} a6 {[%emt 0:08:16]} 5. Ba4 {[%emt 0:02:45]} b5 {[%emt 0:01:14]} 6. Bb3 {[%emt 0:00:05]} Qf6 {[%emt 0:01:35]} 7. O-O {[%emt 0:01:44]} d6 {[%emt 0:00:46]} 8. d4 {[%emt 0:07:02]} Bb6 {[%emt 0:05:08]} 9. Ng5 {[%emt 0:25:08]} Nh6 {[%emt 0:04:04]} 10. f4 {[%emt 0:26:49]} exd4 {[%emt 0:02:52]} 11. e5 {[%emt 0:03:40]} Qg6 {[%emt 0:04:36]} 12. Qf3 {[%emt 0:19:00]} dxe5 {[%emt 0:01:07]} 13. Bd5 {[%emt 0:00:28]} Bb7 {[%emt 0:02:23]} 14. fxe5 {[%emt 0:05:46]} O-O {[%emt 0:06:25]} 15. Qf4 {[%emt 0:01:00]} dxc3+ {[%emt 0:03:38]} 16. Kh1 {[%emt 0:00:03]} cxb2 {[%emt 0:00:08]} 17. Bxb2 {[%emt 0:00:03]} Na5 {[%emt 0:00:19]} 18. Bxb7 {[%emt 0:00:30]} Nxb7 {[%emt 0:00:06]} 19. Nd2 {[%emt 0:00:50]} Nc5 {[%emt 0:00:36]} 20. Nde4 {[%emt 0:02:12]} Nd3 {[%emt 0:02:22]} 21. Qg3 {[%emt 0:00:20]} Nxb2 {[%emt 0:01:06]} 22. Nf6+ {[%emt 0:00:07]} Kh8 {[%emt 0:00:13]} 23. Nfxh7 {[%emt 0:00:11]} Nc4 {[%emt 0:01:23]} 24. Nxf8 {[%emt 0:00:20]} Rxf8 {[%emt 0:04:53]} 25. Nxf7+ {[%emt 0:00:05]} Qxf7 {[%emt 0:01:23]} 26. Rxf7 {[%emt 0:00:04]} Rxf7 {[%emt 0:00:10]} 27. e6 {[%emt 0:00:12]} Re7 {[%emt 0:01:11]} 28. Rd1 {[%emt 0:00:26]} Rxe6 {[%emt 0:02:01]} 29. Rd8+ {[%emt 0:00:10]} Kh7 {[%emt 0:00:03]} 30. Qd3+ {[%emt 0:00:06]} Rg6 {[%emt 0:00:06]} 31. h4 {[%emt 0:02:58]} Ng4 {[%emt 0:00:32]} 32. Rf8 {[%emt 0:00:38]} Nce5 {[%emt 0:03:18]} 33. Qc2 {[%emt 0:01:02]} Nd7 {[%emt 0:00:57]} 34. Rf7 {[%emt 0:00:27]} Ndf6 {[%emt 0:00:12]} 35. Rxf6 {[%emt 0:01:15]} Nxf6 {[%emt 0:00:11]} 36. g4 {[%emt 0:00:01]} Kh6 {[%emt 0:02:23]} 37. g5+ {[%emt 0:00:13]} Kh5 {[%emt 0:01:05]} 38. gxf6 {[%emt 0:00:18]} Rxf6 {[%emt 0:00:08]} 39. Qh7+ {[%emt 0:00:06]} Rh6 {[%emt 0:01:29]} 40. Qxg7 {[%emt 0:00:00]} Rg6 {[%emt 0:00:00]} 41. Qh7+ {[%emt 0:06:48]} Rh6 {[%emt 0:00:15]} 42. Qf5+ {[%emt 0:00:40]} Kxh4 {[%emt 0:00:18]} 43. Kg2 {[%emt 0:00:02]} Rd6 {[%emt 0:05:35]} 44. Kf3 {[%emt 0:00:15]} Rd4 {[%emt 0:00:05]} 45. Qg6 {[%emt 0:00:08]} 1-0

[Event "3rd Memorial Warakomska 2019"]
[Site "Suwalki"]
[Date "2019.08.09"]
[Round "6.19"]
[White "Barski, Radoslaw"]
[Black "Budrewicz, Krzysztof"]
[Result "1-0"]
[ECO "B80"]
[WhiteElo "2468"]
[BlackElo "2188"]
[Annotator "ChessBase"]
[PlyCount "75"]
[EventDate "2019.08.05"]
[EventType "swiss"]
[EventCountry "POL"]
[SourceTitle "playchess.com"]
[Source "ChessBase"]
[SourceQuality "1"]
[TimeControl "40/5400+30:1800+30"]

1. e4 {[%emt 0:00:00]} c5 {[%emt 0:00:00]} 2. Nf3 {[%emt 0:00:00]} e6 {[%emt 0:00:09]} 3. d4 {[%emt 0:00:00]} cxd4 {[%emt 0:00:07]} 4. Nxd4 {[%emt 0:00:00]} Nf6 {[%emt 0:00:22]} 5. Nc3 {[%emt 0:00:00]} d6 {[%emt 0:00:10]} 6. Be3 {[%emt 0:00:45]} a6 {[%emt 0:02:33]} 7. f3 {[%emt 0:03:15]} b5 {[%emt 0:00:41]} 8. Qd2 {[%emt 0:01:07]} Nbd7 {[%emt 0:00:39]} 9. g4 {[%emt 0:00:31]} Nb6 {[%emt 0:00:32]} 10. g5 {[%emt 0:05:46]} Nfd7 {[%emt 0:01:04]} 11. a4 {[%emt 0:08:32]} Nc4 {[%emt 0:09:42]} 12. Bxc4 {[%emt 0:00:07]} bxc4 {[%emt 0:00:03]} 13. a5 {[%emt 0:00:29]} Bb7 {[%emt 0:03:16]} 14. O-O {[%emt 0:02:57]} Be7 {[%emt 0:01:55]} 15. Nde2 {[%emt 0:04:33]} O-O {[%emt 0:05:04]} 16. f4 {[%emt 0:00:40]} Qc7 {[%emt 0:03:23]} 17. Ng3 {[%emt 0:02:34]} Rfe8 {[%emt 0:00:23]} 18. Qf2 {[%emt 0:11:38]} Bf8 {[%emt 0:07:00]} 19. Bd4 {[%emt 0:01:36]} Rab8 {[%emt 0:06:57]} 20. h4 {[%emt 0:13:02]} g6 {[%emt 0:14:07]} 21. h5 {[%emt 0:04:56]} Bg7 {[%emt 0:08:49]} 22. Bxg7 {[%emt 0:00:23]} Kxg7 {[%emt 0:00:04]} 23. Rad1 {[%emt 0:00:40]} Kg8 {[%emt 0:07:23]} 24. Rd4 {[%emt 0:07:37]} Rbd8 {[%emt 0:06:57]} 25. h6 {[%emt 0:04:29]} f6 {[%emt 0:03:11]} 26. Rfd1 {[%emt 0:05:26]} fxg5 {[%emt 0:04:25]} 27. Rxd6 {[%emt 0:00:28]} Nf6 {[%emt 0:00:35]} 28. Rxd8 {[%emt 0:04:42]} Rxd8 {[%emt 0:00:04]} 29. Rxd8+ {[%emt 0:00:12]} Qxd8 {[%emt 0:00:03]} 30. fxg5 {[%emt 0:00:07]} Ng4 {[%emt 0:00:42]} 31. Qf4 {[%emt 0:00:58]} Qd4+ {[%emt 0:03:18]} 32. Kg2 {[%emt 0:04:53]} Ne5 {[%emt 0:01:05]} 33. Qf6 {[%emt 0:00:55]} Nc6 {[%emt 0:00:05]} 34. Qxe6+ {[%emt 0:00:17]} Kf8 {[%emt 0:00:02]} 35. Nge2 {[%emt 0:03:08]} Qd8 {[%emt 0:00:41]} 36. Qd5 {[%emt 0:01:25]} Qe7 {[%emt 0:02:32]} 37. Nf4 {[%emt 0:00:35]} Nd8 {[%emt 0:00:14]} 38. Qxd8+ {[%emt 0:00:07]} 1-0

[Event "3rd Memorial Warakomska 2019"]
[Site "Suwalki"]
[Date "2019.08.09"]
[Round "6.20"]
[White "Molenda, Marcin"]
[Black "Czopor, Maciej"]
[Result "1-0"]
[ECO "A00"]
[WhiteElo "2387"]
[BlackElo "2250"]
[Annotator "NA"]
[PlyCount "97"]
[EventDate "2019.08.05"]
[EventType "swiss"]
[EventCountry "POL"]
[SourceTitle "playchess.com"]
[Source "ChessBase"]
[SourceQuality "1"]
[TimeControl "40/5400+30:1800+30"]

1. g3 {[%emt 0:00:00]} Nf6 {[%emt 0:00:15]} 2. Bg2 {[%emt 0:00:00]} e5 {[%emt 0:03:52]} 3. c4 {[%emt 0:01:33]} d5 {[%emt 0:03:54]} 4. cxd5 {[%emt 0:03:43]} Nxd5 {[%emt 0:00:16]} 5. Nc3 {[%emt 0:01:00]} Nb6 {[%emt 0:01:15]} 6. Nf3 {[%emt 0:00:39]} Nc6 {[%emt 0:00:21]} 7. O-O {[%emt 0:00:07]} Be7 {[%emt 0:01:27]} 8. a3 {[%emt 0:02:54]} O-O {[%emt 0:02:17]} 9. b4 {[%emt 0:00:45]} Re8 {[%emt 0:14:32]} 10. d3 {[%emt 0:07:54]} Bf8 {[%emt 0:16:46]} 11. Bb2 {[%emt 0:05:15]} Bg4 {[%emt 0:06:59]} 12. Ne4 {[%emt 0:17:27]} a5 {[%emt 0:02:24]} 13. b5 {[%emt 0:00:27]} Nd4 {[%emt 0:00:09]} 14. Nxd4 {[%emt 0:01:06]} exd4 {[%emt 0:00:14]} 15. h3 {[%emt 0:00:52]} Bh5 {[%emt 0:04:04]} 16. g4 {[%emt 0:00:37]} Bg6 {[%emt 0:00:06]} 17. Ng3 {[%emt 0:00:04]} Nd5 {[%emt 0:02:25]} 18. Qd2 {[%emt 0:13:50]} Qd6 {[%emt 0:12:59]} 19. Bxd4 {[%emt 0:19:31]} Nf4 {[%emt 0:00:17]} 20. Qb2 {[%emt 0:00:20]} Nxg2 {[%emt 0:03:11]} 21. Kxg2 {[%emt 0:00:02]} Rad8 {[%emt 0:00:29]} 22. Bc3 {[%emt 0:00:36]} h5 {[%emt 0:01:18]} 23. f3 {[%emt 0:01:06]} h4 {[%emt 0:02:04]} 24. Nh1 {[%emt 0:00:41]} Qf4 {[%emt 0:01:03]} 25. Rf2 {[%emt 0:07:00]} Bc5 {[%emt 0:04:08]} 26. Bxg7 {[%emt 0:01:54]} Bxf2 {[%emt 0:00:18]} 27. Nxf2 {[%emt 0:00:05]} f5 {[%emt 0:11:41]} 28. Kf1 {[%emt 0:02:00]} Rd7 {[%emt 0:00:51]} 29. Bc3 {[%emt 0:01:02]} Rde7 {[%emt 0:02:42]} 30. Re1 {[%emt 0:01:33]} a4 {[%emt 0:01:54]} 31. Bd2 {[%emt 0:03:11]} Qe5 {[%emt 0:00:31]} 32. Qb4 {[%emt 0:00:15]} Kh7 {[%emt 0:00:35]} 33. Bg5 {[%emt 0:02:42]} Rf7 {[%emt 0:00:22]} 34. Bxh4 {[%emt 0:00:28]} fxg4 {[%emt 0:00:33]} 35. hxg4 {[%emt 0:01:12]} Qh2 {[%emt 0:00:20]} 36. Bg5 {[%emt 0:00:20]} Bxd3 {[%emt 0:00:54]} 37. exd3 {[%emt 0:00:43]} Rxf3 {[%emt 0:00:12]} 38. Re7+ {[%emt 0:00:35]} Rxe7 {[%emt 0:00:07]} 39. Qxe7+ {[%emt 0:00:07]} Kg8 {[%emt 0:00:20]} 40. Qe6+ {[%emt 0:00:00]} Kg7 {[%emt 0:00:00]} 41. Be3 {[%emt 0:01:42]} Rf7 {[%emt 0:02:35]} 42. g5 {[%emt 0:02:21]} Qh1+ {[%emt 0:00:34]} 43. Ke2 {[%emt 0:00:05]} Qf3+ {[%emt 0:02:57]} 44. Kd2 {[%emt 0:00:18]} Qf5 {[%emt 0:00:30]} 45. Qh6+ {[%emt 0:01:12]} Kg8 {[%emt 0:00:08]} 46. Ne4 {[%emt 0:00:32]} Rg7 {[%emt 0:01:04]} 47. Nf6+ {[%emt 0:02:27]} Kf7 {[%emt 0:00:06]} 48. Qh5+ {[%emt 0:00:08]} Qg6 {[%emt 0:00:21]} 49. Qf3 {[%emt 0:00:19]} 1-0

[Event "3rd Memorial Warakomska 2019"]
[Site "Suwalki"]
[Date "2019.08.09"]
[Round "6.22"]
[White "Punin, Andrii"]
[Black "Jaroch, Karol"]
[Result "1/2-1/2"]
[ECO "C15"]
[WhiteElo "2305"]
[BlackElo "2221"]
[Annotator "NA"]
[PlyCount "120"]
[EventDate "2019.08.05"]
[EventType "swiss"]
[EventCountry "POL"]
[SourceTitle "playchess.com"]
[Source "ChessBase"]
[SourceQuality "1"]
[TimeControl "40/5400+30:1800+30"]

1. e4 {[%emt 0:00:00]} e6 {[%emt 0:00:00]} 2. d4 {[%emt 0:00:00]} d5 {[%emt 0:00:00]} 3. Nc3 {[%emt 0:00:00]} Bb4 {[%emt 0:00:03]} 4. Nge2 {[%emt 0:00:00]} Nf6 {[%emt 0:00:25]} 5. e5 {[%emt 0:00:03]} Nfd7 {[%emt 0:00:06]} 6. Qd3 {[%emt 0:00:11]} Be7 {[%emt 0:25:55]} 7. Qg3 {[%emt 0:01:16]} g6 {[%emt 0:00:11]} 8. h4 {[%emt 0:01:09]} c5 {[%emt 0:02:36]} 9. h5 {[%emt 0:07:03]} g5 {[%emt 0:01:05]} 10. Be3 {[%emt 0:07:05]} Nc6 {[%emt 0:01:32]} 11. O-O-O {[%emt 0:03:13]} Qa5 {[%emt 0:07:43]} 12. dxc5 {[%emt 0:05:18]} Ncxe5 {[%emt 0:24:56]} 13. Nd4 {[%emt 0:01:22]} a6 {[%emt 0:04:01]} 14. h6 {[%emt 0:10:40]} Bxc5 {[%emt 0:06:37]} 15. Qxg5 {[%emt 0:02:36]} Be7 {[%emt 0:00:14]} 16. Qh5 {[%emt 0:02:33]} Ng6 {[%emt 0:01:51]} 17. f4 {[%emt 0:01:25]} Nf6 {[%emt 0:00:31]} 18. Qf3 {[%emt 0:01:35]} Bd7 {[%emt 0:01:21]} 19. g4 {[%emt 0:07:15]} Rc8 {[%emt 0:04:06]} 20. Nb3 {[%emt 0:04:31]} Qc7 {[%emt 0:00:09]} 21. Bd3 {[%emt 0:05:03]} e5 {[%emt 0:11:54]} 22. fxe5 {[%emt 0:02:47]} Nxe5 {[%emt 0:00:23]} 23. Qg2 {[%emt 0:03:32]} Bxg4 {[%emt 0:00:35]} 24. Be2 {[%emt 0:03:03]} Rg8 {[%emt 0:00:28]} 25. Qf1 {[%emt 0:02:04]} Ne4 {[%emt 0:00:19]} 26. Bxg4 {[%emt 0:02:47]} Rxg4 {[%emt 0:01:03]} 27. Bd4 {[%emt 0:01:56]} Ng3 {[%emt 0:01:51]} 28. Qh3 {[%emt 0:00:13]} Ne2+ {[%emt 0:02:02]} 29. Kb1 {[%emt 0:00:07]} Nxd4 {[%emt 0:00:16]} 30. Rxd4 {[%emt 0:01:12]} Rxd4 {[%emt 0:00:46]} 31. Nxd4 {[%emt 0:00:06]} Qd7 {[%emt 0:00:49]} 32. Nf5 {[%emt 0:06:09]} Kf8 {[%emt 0:01:22]} 33. Rg1 {[%emt 0:04:36]} Bf6 {[%emt 0:00:43]} 34. Qf1 {[%emt 0:05:45]} Rxc3 {[%emt 0:00:32]} 35. bxc3 {[%emt 0:02:28]} Nc4 {[%emt 0:00:01]} 36. Qf4 {[%emt 0:03:14]} Qb5+ {[%emt 0:00:33]} 37. Kc1 {[%emt 0:00:04]} Qb2+ {[%emt 0:00:05]} 38. Kd1 {[%emt 0:00:04]} Qb1+ {[%emt 0:00:48]} 39. Ke2 {[%emt 0:03:15]} Qxc2+ {[%emt 0:00:06]} 40. Kf3 {[%emt 0:00:00]} Qxc3+ {[%emt 0:00:00]} 41. Kg2 {[%emt 0:04:39]} Be5 {[%emt 0:04:42]} 42. Qh4 {[%emt 0:03:50]} Qc2+ {[%emt 0:03:55]} 43. Kh1 {[%emt 0:00:32]} Qe4+ {[%emt 0:02:32]} 44. Qxe4 {[%emt 0:00:05]} dxe4 {[%emt 0:00:03]} 45. Rd1 {[%emt 0:02:25]} Ke8 {[%emt 0:03:36]} 46. Kg2 {[%emt 0:00:17]} b5 {[%emt 0:04:08]} 47. Kh3 {[%emt 0:01:03]} b4 {[%emt 0:01:20]} 48. Re1 {[%emt 0:02:45]} Nd2 {[%emt 0:01:00]} 49. Re2 {[%emt 0:00:19]} Bc3 {[%emt 0:02:49]} 50. Nd6+ {[%emt 0:01:46]} Kd7 {[%emt 0:01:56]} 51. Nxe4 {[%emt 0:00:06]} Nxe4 {[%emt 0:00:04]} 52. Rxe4 {[%emt 0:00:06]} a5 {[%emt 0:00:09]} 53. Kg4 {[%emt 0:04:31]} a4 {[%emt 0:00:21]} 54. Rf4 {[%emt 0:01:30]} Ke6 {[%emt 0:00:18]} 55. a3 {[%emt 0:07:26]} f6 {[%emt 0:04:29]} 56. Rc4 {[%emt 0:01:56]} Kd5 {[%emt 0:00:09]} 57. Rc7 {[%emt 0:01:32]} b3 {[%emt 0:04:26]} 58. Rxc3 {[%emt 0:00:30]} b2 {[%emt 0:00:09]} 59. Rd3+ {[%emt 0:00:07]} Kc4 {[%emt 0:00:05]} 60. Rd1 {[%emt 0:00:03]} Kb3 {[%emt 0:01:41]} 1/2-1/2

[Event "3rd Memorial Warakomska 2019"]
[Site "Suwalki"]
[Date "2019.08.09"]
[Round "6.23"]
[White "Kukula, Pawel"]
[Black "Licznerski, Lukasz"]
[Result "0-1"]
[ECO "D85"]
[WhiteElo "2209"]
[BlackElo "2328"]
[Annotator "NA"]
[PlyCount "166"]
[EventDate "2019.08.05"]
[EventType "swiss"]
[EventCountry "POL"]
[SourceTitle "playchess.com"]
[Source "ChessBase"]
[SourceQuality "1"]
[TimeControl "40/5400+30:1800+30"]

1. d4 {[%emt 0:00:00]} Nf6 {[%emt 0:12:04]} 2. c4 {[%emt 0:00:00]} g6 {[%emt 0:00:05]} 3. Nc3 {[%emt 0:00:07]} d5 {[%emt 0:00:23]} 4. cxd5 {[%emt 0:00:36]} Nxd5 {[%emt 0:00:02]} 5. Bd2 {[%emt 0:00:28]} Nb6 {[%emt 0:00:55]} 6. e3 {[%emt 0:00:35]} Bg7 {[%emt 0:02:11]} 7. f4 {[%emt 0:00:18]} O-O {[%emt 0:02:31]} 8. Nf3 {[%emt 0:00:21]} c5 {[%emt 0:16:10]} 9. dxc5 {[%emt 0:00:12]} N6d7 {[%emt 0:00:05]} 10. Ne4 {[%emt 0:00:13]} Bxb2 {[%emt 0:01:49]} 11. Rb1 {[%emt 0:00:06]} Bg7 {[%emt 0:00:21]} 12. Bc4 {[%emt 0:00:07]} Nc6 {[%emt 0:10:37]} 13. O-O {[%emt 0:01:54]} Qc7 {[%emt 0:10:05]} 14. Nfg5 {[%emt 0:03:02]} Nf6 {[%emt 0:06:31]} 15. Nxf7 {[%emt 0:26:24]} Rxf7 {[%emt 0:01:07]} 16. Bxf7+ {[%emt 0:00:54]} Kxf7 {[%emt 0:00:21]} 17. Qb3+ {[%emt 0:00:35]} e6 {[%emt 0:11:11]} 18. Ng5+ {[%emt 0:04:54]} Ke7 {[%emt 0:01:49]} 19. e4 {[%emt 0:01:36]} h6 {[%emt 0:03:52]} 20. e5 {[%emt 0:00:35]} hxg5 {[%emt 0:04:01]} 21. exf6+ {[%emt 0:00:09]} Bxf6 {[%emt 0:00:02]} 22. fxg5 {[%emt 0:00:13]} Bd4+ {[%emt 0:00:14]} 23. Kh1 {[%emt 0:00:25]} Bd7 {[%emt 0:03:47]} 24. Bf4 {[%emt 0:04:33]} e5 {[%emt 0:01:28]} 25. Qf7+ Kxf7 {[%emt 0:00:00]} 26. Bxe5+ {[%emt 0:06:19]} Bf5 {[%emt 0:01:44]} 27. Bxc7 {[%emt 0:00:06]} Ke6 {[%emt 0:03:16]} 28. Rxb7 {[%emt 0:00:36]} Kd5 {[%emt 0:01:06]} 29. Bd6 {[%emt 0:00:58]} Re8 {[%emt 0:00:09]} 30. Rf7 {[%emt 0:09:05]} Bd3 {[%emt 0:01:47]} 31. Rd1 {[%emt 0:06:24]} Re2 {[%emt 0:00:02]} 32. Rf3 {[%emt 0:00:13]} Be4 {[%emt 0:00:09]} 33. Rg3 {[%emt 0:00:04]} Rxa2 {[%emt 0:00:24]} 34. h4 {[%emt 0:00:13]} Ne5 {[%emt 0:03:32]} 35. Be7 {[%emt 0:07:19]} Rf2 {[%emt 0:01:19]} 36. Bf6 {[%emt 0:00:49]} Rf4 {[%emt 0:00:30]} 37. Rh3 {[%emt 0:01:54]} Rf2 {[%emt 0:00:26]} 38. Rg3 {[%emt 0:00:06]} Rf4 {[%emt 0:01:03]} 39. Rh3 {[%emt 0:00:00]} Rg4 {[%emt 0:00:00]} 40. Rd2 {[%emt 0:00:00]} Kxc5 {[%emt 0:00:00]} 41. h5 {[%emt 0:03:19]} gxh5 {[%emt 0:06:02]} 42. Rxh5 {[%emt 0:00:06]} Bd5 {[%emt 0:07:21]} 43. Kh2 {[%emt 0:16:27]} Be3 {[%emt 0:05:17]} 44. Rc2+ {[%emt 0:03:49]} Kd6 {[%emt 0:00:02]} 45. Rh6 {[%emt 0:07:09]} Bf4+ {[%emt 0:00:58]} 46. Kg1 {[%emt 0:00:30]} Nf7 {[%emt 0:01:43]} 47. Rh3 {[%emt 0:01:09]} Nxg5 {[%emt 0:00:54]} 48. Bxg5 {[%emt 0:00:16]} Bxg5 {[%emt 0:00:54]} 49. Ra3 {[%emt 0:00:37]} Bd8 {[%emt 0:00:26]} 50. Kh2 {[%emt 0:01:41]} a5 {[%emt 0:00:47]} 51. Rc8 {[%emt 0:01:43]} Rxg2+ {[%emt 0:01:55]} 52. Kh3 {[%emt 0:00:04]} Bb6 {[%emt 0:01:12]} 53. Rb8 {[%emt 0:02:34]} Kc7 {[%emt 0:01:38]} 54. Rf8 {[%emt 0:03:40]} Rg6 {[%emt 0:01:52]} 55. Kh4 {[%emt 0:02:07]} Kc6 {[%emt 0:00:55]} 56. Rf1 {[%emt 0:02:50]} Kc5 {[%emt 0:01:54]} 57. Rb1 {[%emt 0:01:23]} Bc4 {[%emt 0:01:03]} 58. Re3 {[%emt 0:03:54]} a4 {[%emt 0:01:48]} 59. Re5+ {[%emt 0:01:00]} Kd4 {[%emt 0:03:02]} 60. Re8 {[%emt 0:00:17]} a3 {[%emt 0:00:54]} 61. Ra8 {[%emt 0:00:26]} a2 {[%emt 0:01:20]} 62. Rb2 {[%emt 0:01:37]} Kc3 {[%emt 0:01:24]} 63. Rbxa2 {[%emt 0:00:08]} Bxa2 {[%emt 0:00:16]} 64. Rxa2 {[%emt 0:00:04]} Kd3 {[%emt 0:00:34]} 65. Ra4 {[%emt 0:00:27]} Be3 {[%emt 0:00:35]} 66. Rg4 {[%emt 0:00:16]} Rh6+ {[%emt 0:00:11]} 67. Kg3 {[%emt 0:00:05]} Ke2 {[%emt 0:00:03]} 68. Kg2 {[%emt 0:00:41]} Ra6 {[%emt 0:00:28]} 69. Re4 {[%emt 0:01:14]} Rg6+ {[%emt 0:00:23]} 70. Kh3 {[%emt 0:02:10]} Kf3 {[%emt 0:00:02]} 71. Ra4 {[%emt 0:00:37]} Rb6 {[%emt 0:00:56]} 72. Rg4 {[%emt 0:02:55]} Rh6+ {[%emt 0:00:34]} 73. Rh4 {[%emt 0:00:05]} Rg6 {[%emt 0:00:01]} 74. Ra4 {[%emt 0:01:26]} Rg1 {[%emt 0:01:06]} 75. Ra2 {[%emt 0:01:17]} Rb1 {[%emt 0:01:18]} 76. Rg2 {[%emt 0:00:20]} Rh1+ {[%emt 0:00:21]} 77. Rh2 {[%emt 0:00:05]} Rg1 {[%emt 0:00:01]} 78. Ra2 {[%emt 0:00:16]} Rg3+ {[%emt 0:00:54]} 79. Kh4 {[%emt 0:02:18]} Rg4+ {[%emt 0:00:25]} 80. Kh5 {[%emt 0:00:38]} Rg5+ {[%emt 0:00:05]} 81. Kh4 {[%emt 0:00:06]} Rc5 {[%emt 0:00:36]} 82. Ra3 {[%emt 0:00:54]} Rb5 {[%emt 0:00:18]} 83. Rd3 {[%emt 0:01:52]} Rb1 {[%emt 0:00:28]} 0-1